Workbook

Sheet Rect, Trap & Tri Gates
B1: Forces on Submerged Gates (Rectangular, Trapezoidal and Triangular Gates)
B2: Choose values for the four variables in the orange boxes, and the spreadsheet will display in the green boxes the net force (F), moment (M) and center of pressure (D) for the submerged gate
B3: The calculated center of pressure is shown with a "*"
B5: Density of Water (kg/m3) | D5: Gravitation Acceleration (m/s2) | F5: Specific Weight (N/m3)
B6: ρ = | C6: 1000 | D6: g = | E6: 9.81 | F6: γ = | G6: =C6*E6 -> 9810
B8: Depth of Top of Gate (m) | D8: Gate Height (m) | F8: Upper Width of Gate (m) | H8: Bottom Width of Gate (m)
B9: D1 = | C9: 0.1 | D9: D2 = | E9: 0.5 | F9: W1 = | G9: 0.2 | H9: W2 = | I9: 0.4
B11: Net force (N) | D11: Net moment (N·m) | F11: Center of Pressure (m)
B12: F = | C12: =G6*E9*(G9/2*(2*C9+E9)+(I9-G9)/6*(3*C9+2*E9)) -> 555.9 | D12: M = | E12: =G6*E9*(G9/3*(3*C9^2+3*C9*E9+E9^2)+(I9-G9)/12/E9*(6*C9^2*E9+8*C9*E9^2+3*E9^3)) -> 239.5275 | F12: D = | G12: =E12/C12 -> 0.4308823529
E15: The force (F), moment (M) and center of pressure (D) reported in Row 10, above, are calculated using formulas
E16: shown on the Calculations tab. F and M can also be determined by numerical integration,
E17: as in the following table:
E19: Scaled position | F19: D | G19: P(D) | H19: W(D) | I19: dF | J19: dM
E20: 0.05 | F20: =C$9+E20*E$9 -> 0.125 | G20: =F20*G$6 -> 1226.25 | H20: =G$9+(I$9-G$9)*(F20-C$9)/E$9 -> 0.21 | I20: =G20*H20*(E$9/10) -> 12.875625 | J20: =F20*G20*H20*(E$9/10) -> 1.609453125
E21: 0.15 | F21: =C$9+E21*E$9 -> 0.175 | G21: =F21*G$6 -> 1716.75 | H21: =G$9+(I$9-G$9)*(F21-C$9)/E$9 -> 0.23 | I21: =G21*H21*(E$9/10) -> 19.742625 | J21: =F21*G21*H21*(E$9/10) -> 3.454959375
E22: 0.25 | F22: 0.225 | G22: 2207.25 | H22: 0.25 | I22: 27.590625 | J22: 6.207890625
E23: 0.35 | F23: 0.275 | G23: 2697.75 | H23: 0.27 | I23: 36.419625 | J23: 10.01539688
E24: 0.45 | F24: 0.325 | G24: 3188.25 | H24: 0.29 | I24: 46.229625 | J24: 15.02462813
E25: 0.55 | F25: 0.375 | G25: 3678.75 | H25: 0.31 | I25: 57.020625 | J25: 21.38273438
E26: 0.65 | F26: 0.425 | G26: 4169.25 | H26: 0.33 | I26: 68.792625 | J26: 29.23686563
E27: 0.75 | F27: 0.475 | G27: 4659.75 | H27: 0.35 | I27: 81.545625 | J27: 38.73417188
E28: 0.85 | F28: 0.525 | G28: 5150.25 | H28: 0.37 | I28: 95.279625 | J28: 50.02180313
E29: 0.95 | F29: 0.575 | G29: 5640.75 | H29: 0.39 | I29: 109.994625 | J29: 63.24690938
I30: =SUM(I20:I29) -> 555.49125 | J30: =SUM(J20:J29) -> 238.9348125
I31: F = ↗ | J31: M = ↗
I32: =J30/I30 -> 0.4301324503
I33: D-bar = ↗

Sheet Circular Gate
B1: Forces on Submerged Gates (Circular Gates)
B2: Choose values for the two variables in the orange boxes, and the spreadsheet will display in the green boxes the net force (F), moment (M) and center of pressure (D) for the submerged gate
B3: The calculated center of pressure is shown with a "*"
B5: Density of Water (kg/m3) | D5: Gravitation Acceleration (m/s2) | F5: Specific Weight (N/m3)
B6: ρ = | C6: 1000 | D6: g = | E6: 9.81 | F6: γ = | G6: =C6*E6 -> 9810
B8: Depth of Top of Gate (m) | D8: Gate Diameter (m)
B9: D1 = | C9: 0.2 | D9: D2 = | E9: 0.8
B11: Net force (N) | D11: Net moment (N·m) | F11: Center of Pressure (m)
B12: F = | C12: =PI()*G6*(C9+E9/2)*(E9/2)^2 -> 2958.626297 | D12: M = | E12: =PI()*G6*E9^2/64*(16*C9^2+ 16*C9*E9+5*E9^2) -> 1972.417532 | F12: x̅ = | G12: =E12/C12 -> 0.6666666667
E15: The force (F), moment (M) and center of pressure (D) reported in Row 10, above, are calculated using formulas
E16: shown on the Calculations tab. F and M can also be determined by numerical integration,
E17: as in the following table:
E19: scaled position | F19: D | G19: P(D) | H19: W(D) | I19: dF | J19: dM
E20: 0.025 | F20: =C$9+E20*E$9 -> 0.22 | G20: =F20*G$6 -> 2158.2 | H20: =2*SQRT((E$9/2)^2-(C$9+E$9/2-F20)^2) -> 0.2497999199 | I20: =G20*H20*E$9/20 -> 21.56472749 | J20: =F20*G20*H20*E$9/20 -> 4.744240047
E21: 0.075 | F21: =C$9+E21*E$9 -> 0.26 | G21: 2550.6 | H21: 0.4214261501 | I21: =G21*H21*E$9/20 -> 42.99558154 | J21: =F21*G21*H21*E$9/20 -> 11.1788512
E22: 0.125 | F22: 0.3 | G22: 2943 | H22: 0.5291502622 | I22: 62.29156887 | J22: 18.68747066
E23: 0.175 | F23: 0.34 | G23: 3335.4 | H23: 0.6079473661 | I23: 81.1099058 | J23: 27.57736797
E24: 0.225 | F24: 0.38 | G24: 3727.8 | H24: 0.6681317235 | I24: 99.62645756 | J24: 37.85805387
E25: 0.275 | F25: 0.42 | G25: 4120.2 | H25: 0.714422844 | I25: 117.7426001 | J25: 49.45189203
E26: 0.325 | F26: 0.46 | G26: 4512.6 | H26: 0.7493997598 | I26: 135.2696542 | J26: 62.22404095
E27: 0.375 | F27: 0.5 | G27: 4905 | H27: 0.7745966692 | I27: 151.9758665 | J27: 75.98793325
E28: 0.425 | F28: 0.54 | G28: 5297.4 | H28: 0.7909487973 | I28: 167.5988864 | J28: 90.50339863
E29: 0.475 | F29: 0.58 | G29: 5689.8 | H29: 0.7989993742 | I29: 181.8458656 | J29: 105.470602
E30: 0.525 | F30: =C$9+E30*E$9 -> 0.62 | G30: =F30*G$6 -> 6082.2 | H30: =2*SQRT((E$9/2)^2-(C$9+E$9/2-F30)^2) -> 0.7989993742 | I30: 194.3869598 | J30: 120.519915
E31: 0.575 | F31: 0.66 | G31: 6474.6 | H31: 0.7909487973 | I31: 204.8430833 | J31: 135.196435
E32: 0.625 | F32: 0.7 | G32: 6867 | H32: 0.7745966692 | I32: 212.7662131 | J32: 148.9363492
E33: 0.675 | F33: 0.74 | G33: 7259.4 | H33: 0.7493997598 | I33: 217.6077047 | J33: 161.0297014
E34: 0.725 | F34: 0.78 | G34: 7651.8 | H34: 0.714422844 | I34: 218.6648287 | J34: 170.5585664
E35: 0.775 | F35: 0.82 | G35: 8044.2 | H35: 0.6681317235 | I35: 214.9834084 | J35: 176.2863949
E36: 0.825 | F36: 0.86 | G36: 8436.6 | H36: 0.6079473661 | I36: 205.16035 | J36: 176.437901
E37: 0.875 | F37: 0.9 | G37: 8829 | H37: 0.5291502622 | I37: 186.8747066 | J37: 168.1872359
E38: 0.925 | F38: 0.94 | G38: 9221.4 | H38: 0.4214261501 | I38: 155.445564 | J38: 146.1188302
E39: 0.975 | F39: 0.98 | G39: 9613.8 | H39: 0.2497999199 | I39: 96.06105881 | J39: 94.13983763
I40: =SUM(I20:I39) -> 2968.814991 | J40: =SUM(J20:J39) -> 1981.095017
I41: F = ↗ | J41: M = ↗
I42: =J40/I40 -> 0.6673016079
I43: D-bar = ↗

Sheet Analytical Calculations
